fUSD/lending_fUSD_20240201
["ID","MTS","AMOUNT","RATE_DAILY","PERIOD"]
[313103949,1706749839033,-3424.0,0.00034965,2]
[313103950,1706749839042,-1264.50569763,0.00035,4]
[313103951,1706749839051,-5000.0,0.00035,7]
[313103952,1706749839060,-3000.0,0.00035,2]
[313103953,1706749839070,-119180.84021973,0.00035,4]
[313103954,1706749839079,-150.0,0.00035,2]
[313103955,1706749839088,-221.51654335,0.00035,4]
[313103956,1706749839098,-155.0,0.00035,4]
[313103957,1706749839107,-155.0,0.00035,2]
[313103958,1706749839116,-155.41728124,0.00035,2]
[313103959,1706749839125,-225.94849707,0.00035,4]
[313103960,1706749839135,-5000.0,0.00035,7]
[313103961,1706749839144,-450.0,0.00035,3]
[313103962,1706749839154,-600.0,0.00035,3]
[313103963,1706749839163,-158.79,0.00035008,2]
[313103964,1706749839172,-150.0,0.00035024,2]
[313103965,1706749839181,-151.0201,0.00035048,3]
[313103966,1706749839191,-150.0,0.00035067,2]
[313103967,1706749839200,-803.036692,0.00035068,2]
[313103968,1706749839209,-23762.49722694,0.000351,2]
[313103969,1706749839218,-554.84770367,0.0003511,2]
[313103970,1706749839229,-151.0201,0.00035148,3]
[313103971,1706749839238,-19148.95247044,0.00035198,7]
[313103972,1706749839247,-175.30167221,0.00035199,2]
[313103973,1706749839256,-504.2735169,0.00035199,2]
[313103974,1706749839267,-28424.0476,0.0003521,2]
[313103975,1706749839277,-1000.0,0.0003521,2]
[313103976,1706749839286,-180.37067388,0.00035218,2]
[313103977,1706749839295,-291.38118796,0.00035218,7]
[313103978,1706749839306,-155.77035726,0.00035218,2]
[313103979,1706749839315,-240.36328486,0.00035218,2]
[313103980,1706749839326,-923.00103089,0.00035218,2]
[313103981,1706749839336,-1669.24846677,0.00035218,2]
[313103982,1706749839346,-151.0201,0.00035248,3]
[313103983,1706749839519,-1812.04,0.0003525,5]
[313103984,1706749839544,-204.0,0.00035283,14]
[313103985,1706749839553,-209.84490538,0.00035308,7]
[313103986,1706749839562,-1370.74829264,0.00035308,4]
[313103987,1706749839572,-3633.54013915,0.00035308,4]
[313103988,1706749839581,-905.18762355,0.00035308,4]
[313103989,1706749839591,-1460.95450688,0.00035309,4]
[313103990,1706749839600,-5783.07130422,0.0003531,15]
[313103991,1706749839609,-200.0,0.0003531,2]
[313103992,1706749839618,-333.31975455,0.0003531,4]
[313103993,1706749839627,-22471.10008371,0.00035315,2]
[313103994,1706749839637,-150.0,0.00035317,2]
[313103995,1706749839646,-150.0,0.00035317,2]
[313103996,1706749839656,-150.0,0.00035317,2]
[313103997,1706749839665,-150.0,0.00035317,2]
[313103998,1706749839674,-150.0,0.00035317,2]
[313103999,1706749839683,-150.0,0.00035317,2]
[313104000,1706749839692,-150.0,0.00035317,2]
[313104001,1706749839702,-150.0,0.00035317,2]
[313104002,1706749839711,-150.0,0.00035317,2]
[313104003,1706749839720,-195.56655507,0.00035317,2]
[313104004,1706749839729,-150.0,0.00035317,2]
[313104005,1706749839739,-29129.57756809,0.00035318,2]
[313104006,1706749839748,-155.85687053,0.00035318,3]
[313104007,1706749839757,-1108336.87002899,0.00035318,3]
[313104009,1706749840718,-464.22122074,0.00024735,2]
[313104010,1706749840730,-50.53877926,0.00024735,2]
[313104011,1706749840740,-514.76,0.00026999,2]
[313104012,1706749840749,-514.76,0.00029262,2]
[313104013,1706749840758,-107.08181902,0.00031526,2]
[313104014,1706749840780,-407.67818098,0.00031526,2]
[313104015,1706749840790,-142.21632991,0.0003379,2]
[313104016,1706749840839,-300.25019249,0.0003379,2]
[313104017,1706749841510,-72.2934776,0.0003379,2]
[313104018,1706749841520,-2934.22623376,0.000345,14]
[313104019,1706749841547,-500.0,0.000345,14]
[313104030,1706749843116,-635.36067211,0.00026871,3]
[313104034,1706749843176,-386.96454,0.00026871,3]
[313104035,1706749843456,-300.1186501,0.00026871,3]
[313104037,1706749846309,-268.45783073,0.00026871,3]
[313104038,1706749846319,-192.57104392,0.000345,14]
[313104039,1706749846334,-4373.19272232,0.000345,14]
[313104040,1706749846345,-151.0201,0.00034948,3]
[313104041,1706749846361,-554.84770367,0.00035218,2]
[313104042,1706749846371,-18035.67868827,0.00035318,3]
[313104043,1706749846383,-4419.63900856,0.00035318,3]
[313104044,1706749846412,-4012.50596736,0.00035318,3]
[313104083,1706751032379,-155.0,0.00022779,2]
[313104084,1706751032388,-385.56531795,0.00022779,2]
[313104085,1706751032401,-1375.07063722,0.0002278,2]
[313104086,1706751032410,-150.00745862,0.000228,2]
[313104087,1706751032419,-663.7404,0.00022899,2]
[313104088,1706751032428,-150.0,0.00023,2]
[313104089,1706751032438,-535.64853932,0.00026489,2]
[313104090,1706751032447,-163.90303499,0.00029802,2]
[313104091,1706751032457,-477.76,0.00029902,2]
[313104092,1706751032467,-155.0,0.0003,2]
[313104093,1706751032477,-4214.7046119,0.00031499,2]
[313104094,1706751032489,-900.42112,0.00031499,2]
[313104095,1706751032525,-281.63740935,0.00031499,2]
[313104096,1706751032536,-266.1619309,0.00031499,2]
[313104097,1706751032547,-271.85604155,0.00031499,2]
[313104098,1706751032559,-2101.44935,0.00031499,2]
[313104099,1706751032571,-10022.5995363,0.00031499,2]
[313104100,1706751032581,-168.88,0.00031544,2]
[313104101,1706751032591,-485.88,0.00031588,2]
[313104102,1706751032600,-150.0,0.00031608,2]
[313104103,1706751032609,-680.0,0.00031636,2]
[313104104,1706751032619,-234.33,0.00031674,2]
[313104105,1706751032629,-177.56,0.00031695,10]
[313104106,1706751032638,-444.2,0.00031695,2]
[313104107,1706751032648,-2394.03,0.0003171,2]
[313104108,1706751032658,-1590.73,0.0003176,3]
[313104109,1706751032668,-160.6,0.00031839,2]
[313104110,1706751032678,-250.0,0.00031853,2]
[313104111,1706751032690,-248.68,0.00031924,2]
[313104112,1706751032699,-477.76,0.00032166,2]
[313104113,1706751032708,-320.0,0.00032175,2]
[313104114,1706751032717,-160.6,0.00032392,2]
[313104115,1706751032729,-181.86,0.00032434,2]
[313104116,1706751032738,-2064.7095,0.00032775,2]
[313104117,1706751032749,-517.2732,0.00032776,2]
[313104118,1706751032759,-4460.20725268,0.00032866,2]
[313104119,1706751032769,-3117.06036723,0.00032874,2]
[313104120,1706751032778,-809.440986,0.00032874,4]
[313104121,1706751032788,-12075.55011095,0.00032874,2]
[313104122,1706751032798,-7473.82782723,0.00032875,4]
[313104123,1706751032809,-362.59703374,0.00032875,4]
[313104124,1706751032819,-4204.29553975,0.00032875,2]
[313104125,1706751032828,-561.97715651,0.00032876,2]
[313104126,1706751032837,-410.81504426,0.00032876,2]
[313104127,1706751032847,-196.43753151,0.00032876,2]
[313104128,1706751032856,-541.26298778,0.00032876,2]
[313104129,1706751032866,-510.63364645,0.00032876,2]
[313104130,1706751032875,-525.12553441,0.00032876,2]
[313104131,1706751032884,-508.5782233,0.00032876,2]
[313104132,1706751032894,-500.0,0.00032876,2]
[313104133,1706751032903,-500.0,0.00032876,2]
[313104134,1706751032913,-513.40162356,0.00032876,2]
[313104135,1706751032922,-500.0,0.00032876,2]
[313104136,1706751032932,-500.0,0.00032876,2]
[313104137,1706751032941,-1307.23,0.00032876,2]
[313104138,1706751032951,-500.0,0.00032876,2]
[313104139,1706751032960,-500.0,0.00032876,2]
[313104140,1706751032970,-509.45083772,0.00032876,2]
[313104141,1706751032979,-500.0,0.00032876,2]
[313104142,1706751032989,-167.56619595,0.00032876,2]
[313104143,1706751032999,-500.0,0.00032876,2]
[313104144,1706751033008,-500.0,0.00032876,2]
[313104145,1706751033018,-500.0,0.00032876,2]
[313104146,1706751033027,-500.0,0.00032876,2]
[313104147,1706751033037,-155.52603274,0.00032876,2]
[313104148,1706751033046,-1113.48,0.00032876,2]
[313104149,1706751033056,-500.0,0.00032876,2]
[313104150,1706751033065,-500.0,0.00032876,2]
[313104151,1706751033075,-500.0,0.00032876,2]
[313104152,1706751033085,-347.52605877,0.00032876,2]
[313104153,1706751033095,-500.0,0.00032876,2]
[313104154,1706751033104,-500.0,0.00032876,2]
[313104155,1706751033115,-500.0,0.00032876,2]
[313104156,1706751033125,-500.0,0.00032876,2]
[313104157,1706751033134,-500.0,0.00032876,2]
[313104158,1706751033144,-500.0,0.00032876,2]
[313104159,1706751033154,-500.0,0.00032876,2]
[313104160,1706751033163,-500.0,0.00032876,2]
[313104161,1706751033173,-500.0,0.00032876,2]
[313104162,1706751033182,-500.0,0.00032876,2]
[313104163,1706751033192,-500.0,0.00032876,2]
[313104164,1706751033201,-492.66900958,0.00032876,2]
[313104165,1706751033210,-500.0,0.00032876,2]
[313104166,1706751033220,-500.0,0.00032876,2]
[313104167,1706751033229,-500.0,0.00032876,2]
[313104168,1706751033238,-500.0,0.00032876,2]
[313104169,1706751033250,-500.0,0.00032876,2]
[313104170,1706751033259,-500.0,0.00032876,2]
[313104171,1706751033268,-500.0,0.00032876,2]
[313104172,1706751033277,-500.0,0.00032876,2]
[313104173,1706751033287,-1208.58,0.00032876,2]
[313104174,1706751033297,-500.0,0.00032876,2]
[313104175,1706751033306,-500.0,0.00032876,2]
[313104176,1706751033315,-500.0,0.00032876,2]
[313104177,1706751033324,-500.0,0.00032876,2]
[313104178,1706751033334,-169.27018609,0.00032876,2]
[313104179,1706751033343,-500.0,0.00032876,2]
[313104180,1706751033353,-583.31,0.00032876,2]
[313104181,1706751033362,-500.0,0.00032876,2]
[313104182,1706751033372,-500.0,0.00032876,2]
[313104183,1706751033381,-500.0,0.00032876,2]
[313104184,1706751033391,-1528.21,0.00032876,2]
[313104185,1706751033400,-535.28,0.00032876,2]
[313104186,1706751033409,-500.0,0.00032876,2]
[313104187,1706751033418,-573.78,0.00032876,2]
[313104188,1706751033427,-160.6,0.00032945,2]
[313104189,1706751033436,-10000.0,0.00033,2]
[313104190,1706751033445,-234.33,0.00033318,2]
[313104191,1706751033454,-994.31355814,0.00033324,6]
[313104192,1706751033464,-7875.4565,0.00033324,2]
[313104193,1706751033474,-347.47509004,0.00033421,4]
[313104194,1706751033483,-236.26344179,0.00033421,4]
[313104195,1706751033492,-500.0,0.00033422,2]
[313104196,1706751033503,-638.32,0.00033422,2]
[313104197,1706751033512,-662.47,0.00033422,2]
[313104198,1706751033521,-652.82,0.00033422,2]
[313104199,1706751033530,-928.46,0.00033422,2]
[313104200,1706751033539,-540.51,0.00033422,2]
[313104201,1706751033549,-1785.32,0.00033422,2]
[313104202,1706751033558,-500.0,0.00033422,2]
[313104203,1706751033568,-744.36,0.00033422,2]
[313104204,1706751033577,-1344.23,0.00033422,2]
[313104205,1706751033586,-652.83,0.00033422,2]
[313104206,1706751033596,-500.0,0.00033422,2]
[313104207,1706751033605,-791.3,0.00033422,2]
[313104208,1706751033615,-500.0,0.00033422,2]
[313104209,1706751033624,-500.0,0.00033422,2]
[313104210,1706751033633,-500.0,0.00033422,2]
[313104211,1706751033642,-500.0,0.00033422,2]
[313104212,1706751033651,-2731.97,0.00033422,2]
[313104213,1706751033661,-1246.27,0.00033422,2]
[313104214,1706751033670,-500.0,0.00033422,2]
[313104215,1706751033680,-811.79,0.00033422,2]
[313104216,1706751033690,-500.0,0.00033422,2]
[313104217,1706751033699,-531.63,0.00033422,2]
[313104218,1706751033709,-500.0,0.00033422,2]
[313104219,1706751033721,-500.0,0.00033422,2]
[313104220,1706751033730,-583.71782345,0.00033422,2]
[313104221,1706751033740,-806.29,0.00033422,2]
[313104222,1706751033752,-500.0,0.00033422,2]
[313104223,1706751033761,-693.38,0.00033422,2]
[313104224,1706751033770,-500.0,0.00033422,2]
[313104225,1706751033781,-620.61028165,0.00033422,2]
[313104226,1706751033791,-500.0,0.00033422,2]
[313104227,1706751033800,-500.0,0.00033422,2]
[313104228,1706751033811,-524.8662167,0.00033422,2]
[313104229,1706751033820,-500.0,0.00033422,2]
[313104230,1706751033829,-558.66939903,0.00033422,2]
[313104231,1706751033838,-500.0,0.00033422,2]
[313104232,1706751033847,-500.0,0.00033422,2]
[313104233,1706751033856,-583.1295214,0.00033422,2]
[313104234,1706751033866,-965.63,0.00033422,2]
[313104235,1706751033875,-527.19686217,0.00033422,2]
[313104236,1706751033884,-500.0,0.00033422,2]
[313104237,1706751033894,-500.0,0.00033423,2]
[313104238,1706751033903,-500.0,0.00033423,2]
[313104239,1706751033913,-500.0,0.00033423,2]
[313104240,1706751033922,-500.0,0.00033423,2]
[313104241,1706751033932,-500.0,0.00033423,2]
[313104242,1706751033942,-500.0,0.00033423,2]
[313104243,1706751033952,-791.85,0.00033423,2]
[313104244,1706751033962,-500.0,0.00033423,2]
[313104245,1706751033972,-500.0,0.00033423,2]
[313104246,1706751033982,-500.0,0.00033423,2]
[313104247,1706751033992,-500.0,0.00033423,2]
[313104248,1706751034005,-500.0,0.00033423,2]
[313104249,1706751034015,-500.0,0.00033423,2]
[313104250,1706751034025,-500.0,0.00033423,2]
[313104251,1706751034034,-911.13,0.00033423,2]
[313104252,1706751034043,-500.0,0.00033423,2]
[313104253,1706751034053,-500.0,0.00033423,2]
[313104254,1706751034062,-500.0,0.00033423,2]
[313104255,1706751034072,-500.0,0.00033423,2]
[313104256,1706751034082,-518.83,0.00033423,2]
[313104257,1706751034092,-500.0,0.00033423,2]
[313104258,1706751034101,-1613.63,0.00033423,7]
[313104259,1706751034111,-500.00005973,0.00033423,2]
[313104260,1706751034120,-500.0,0.00033423,2]
[313104261,1706751034130,-500.0,0.00033423,2]
[313104262,1706751034139,-500.0,0.00033423,2]
[313104263,1706751034149,-500.0,0.00033423,2]
[313104264,1706751034158,-614.00667743,0.00033423,2]
[313104265,1706751034168,-399.0,0.00033423,2]
[313104266,1706751034177,-500.0,0.00033423,2]
[313104267,1706751034187,-500.0,0.00033423,2]
[313104268,1706751034196,-500.0,0.00033423,2]
[313104269,1706751034206,-500.0,0.00033423,2]
[313104270,1706751034215,-500.0,0.00033423,2]
[313104271,1706751034225,-500.0,0.00033423,2]
[313104272,1706751034234,-500.0,0.00033423,2]
[313104273,1706751034463,-500.0,0.00033423,2]
[313104274,1706751034474,-500.0,0.00033423,2]
[313104275,1706751034482,-500.0,0.00033423,2]
[313104276,1706751034492,-500.0,0.00033423,2]
[313104277,1706751034503,-500.0,0.00033423,2]
[313104278,1706751034512,-500.0,0.00033423,2]
[313104279,1706751034522,-500.0,0.00033423,2]
[313104280,1706751034531,-289.0,0.00033423,2]
[313104281,1706751034541,-500.0,0.00033423,2]
[313104282,1706751034550,-156.04177889,0.00033423,2]
[313104283,1706751034559,-500.0,0.00033423,2]
[313104284,1706751034568,-500.0,0.00033423,2]
[313104285,1706751034577,-500.0,0.00033423,2]
[313104286,1706751034587,-500.0,0.00033423,2]
[313104287,1706751034596,-500.0,0.00033423,2]
[313104288,1706751034605,-500.0,0.00033423,2]
[313104289,1706751034614,-500.0,0.00033423,2]
[313104290,1706751034623,-500.0,0.00033423,2]
[313104291,1706751034632,-500.0,0.00033423,2]
[313104292,1706751034641,-500.0,0.00033423,2]
[313104293,1706751034650,-500.0,0.00033423,2]
[313104294,1706751034660,-515.39,0.00033423,2]
[313104295,1706751034669,-500.0,0.00033423,2]
[313104296,1706751034678,-500.0,0.00033423,2]
[313104297,1706751034689,-669.05,0.00033423,2]
[313104298,1706751034698,-500.0,0.00033423,2]
[313104299,1706751034707,-567.35,0.00033423,2]
[313104300,1706751034718,-500.0,0.00033423,2]
[313104301,1706751034727,-500.0,0.00033423,2]
[313104302,1706751034736,-500.0,0.00033423,2]
[313104303,1706751034745,-718.75,0.00033423,2]
[313104304,1706751034755,-176.37,0.00033423,2]
[313104305,1706751034764,-500.0,0.00033423,2]
[313104306,1706751034773,-500.0,0.00033423,2]
[313104307,1706751034782,-500.0,0.00033423,2]
[313104308,1706751034791,-354.37,0.00033423,2]
[313104309,1706751034801,-500.0,0.00033423,2]
[313104310,1706751034811,-500.0,0.00033423,2]
[313104311,1706751034820,-500.0,0.00033423,2]
[313104312,1706751034830,-500.0,0.00033423,2]
[313104313,1706751034840,-500.0,0.00033423,2]
[313104314,1706751034849,-500.0,0.00033423,2]
[313104315,1706751034858,-500.0,0.00033423,2]
[313104316,1706751034868,-1687.18,0.00033423,2]
[313104317,1706751034877,-1036.02,0.00033423,5]
[313104318,1706751034887,-1048.19498601,0.00033423,7]
[313104319,1706751034896,-608.75,0.00033423,2]
[313104320,1706751034906,-500.0,0.00033423,2]
[313104321,1706751034915,-507.27,0.00033423,2]
[313104322,1706751034925,-508.48,0.00033423,2]
[313104323,1706751034934,-977.32,0.00033423,2]
[313104324,1706751034945,-500.0,0.00033423,2]
[313104325,1706751034954,-1466.44,0.00033423,2]
[313104326,1706751034964,-500.0,0.00033423,2]
[313104327,1706751034974,-500.0,0.00033423,2]
[313104328,1706751034984,-3011.45,0.00033423,2]
[313104329,1706751034994,-1759.87,0.00033423,2]
[313104330,1706751035008,-500.0,0.00033423,2]
[313104331,1706751035018,-500.0,0.00033423,2]
[313104332,1706751035029,-500.0,0.00033423,2]
[313104333,1706751035039,-500.0,0.00033423,2]
[313104334,1706751035049,-579.07,0.00033423,2]
[313104335,1706751035059,-529.4,0.00033423,2]
[313104336,1706751035069,-855.91,0.00033423,2]
[313104337,1706751035079,-500.0,0.00033423,2]
[313104338,1706751035089,-533.75,0.00033423,2]
[313104339,1706751035100,-500.0,0.00033423,2]
[313104340,1706751035110,-500.0,0.00033423,2]
[313104342,1706751035119,-812.18,0.00033423,2]
[313104344,1706751035130,-500.0,0.00033423,2]
[313104345,1706751035139,-500.0,0.00033423,2]
[313104347,1706751035149,-914.58,0.00033423,2]
[313104349,1706751035159,-1686.6,0.00033423,2]
[313104351,1706751035169,-500.0,0.00033423,2]
[313104352,1706751035179,-604.26,0.00033423,2]
[313104354,1706751035189,-500.0,0.00033423,2]
[313104356,1706751035199,-161.9,0.00033423,2]
[313104359,1706751035210,-678.92,0.00033423,2]
[313104361,1706751035220,-500.0,0.00033423,2]
[313104363,1706751035229,-500.0,0.00033423,2]
[313104365,1706751035239,-842.96,0.00033423,2]
[313104367,1706751035250,-908.41,0.00033423,2]
[313104370,1706751035260,-500.0,0.00033423,2]
[313104373,1706751035269,-500.0,0.00033423,2]
[313104376,1706751035279,-500.0,0.00033423,2]
[313104378,1706751035288,-1380.34,0.00033423,2]
[313104381,1706751035297,-500.0,0.00033423,2]
[313104384,1706751035307,-3815.84,0.00033423,2]
[313104387,1706751035317,-500.0,0.00033423,2]
[313104390,1706751035326,-581.17,0.00033423,2]
[313104393,1706751035336,-3275.23,0.00033423,2]
[313104396,1706751035346,-500.0,0.00033423,2]
[313104400,1706751035357,-536.72,0.00033423,2]
[313104402,1706751035367,-997.16,0.00033423,2]
[313104404,1706751035376,-500.0,0.00033423,2]
[313104407,1706751035385,-500.0,0.00033423,2]
[313104408,1706751035395,-500.0,0.00033423,2]
[313104410,1706751035404,-500.0,0.00033423,2]
[313104412,1706751035414,-812.12,0.00033423,2]
[313104414,1706751035423,-500.0,0.00033423,2]
[313104416,1706751035432,-500.0,0.00033423,2]
[313104418,1706751035442,-500.0,0.00033423,2]
[313104420,1706751035451,-1155.57,0.00033423,2]
[313104422,1706751035460,-500.0,0.00033423,2]
[313104424,1706751035471,-500.0,0.00033423,2]
[313104426,1706751035480,-500.0,0.00033423,2]
[313104429,1706751035490,-1206.6,0.00033423,2]
[313104430,1706751035502,-719.21,0.00033423,2]
[313104432,1706751035511,-500.0,0.00033423,2]
[313104435,1706751035521,-500.0,0.00033423,2]
[313104436,1706751035531,-3393.62,0.00033423,2]
[313104439,1706751035540,-500.0,0.00033423,2]
[313104440,1706751035550,-794.7,0.00033423,2]
[313104443,1706751035560,-500.0,0.00033423,2]
[313104445,1706751035570,-500.0,0.00033423,2]
[313104447,1706751035580,-584.9,0.00033423,2]
[313104449,1706751035589,-500.0,0.00033423,2]
[313104451,1706751035600,-1511.96,0.00033423,2]
[313104452,1706751035609,-948.65,0.00033423,2]
[313104455,1706751035619,-500.0,0.00033423,2]
[313104457,1706751035629,-672.7,0.00033423,2]
[313104459,1706751035639,-500.0,0.00033423,2]
[313104461,1706751035648,-500.0,0.00033423,2]
[313104463,1706751035657,-500.0,0.00033423,2]
[313104464,1706751035666,-500.0,0.00033423,2]
[313104467,1706751035676,-500.0,0.00033423,2]
[313104468,1706751035692,-742.82,0.00033423,2]
[313104470,1706751035703,-258.16536005,0.00033423,2]
[313104472,1706751035713,-500.0,0.00033423,2]
[313104473,1706751035722,-516.4627256,0.00033423,2]
[313104474,1706751035734,-500.0,0.00033423,2]
[313104475,1706751035744,-500.0,0.00033423,2]
[313104476,1706751035757,-1957.6,0.00033423,2]
[313104477,1706751035766,-524.99298707,0.00033423,2]
[313104478,1706751035776,-500.0,0.00033423,2]
[313104479,1706751035787,-435.07504178,0.00033423,2]
[313104480,1706751035797,-3247.43,0.00033423,2]
[313104481,1706751035807,-651.12,0.00033423,2]
[313104482,1706751035818,-500.0,0.00033423,2]
[313104483,1706751035828,-963.87,0.00033423,2]
[313104484,1706751035838,-482.21342769,0.00033423,2]
[313104485,1706751035849,-506.67119008,0.00033423,2]
[313104486,1706751035858,-1315.53,0.00033423,2]
[313104487,1706751035868,-500.0,0.00033423,2]
[313104488,1706751035878,-509.34996793,0.00033423,2]
[313104489,1706751035888,-678.92,0.00033423,2]
[313104490,1706751035899,-500.0,0.00033423,2]
[313104491,1706751035910,-500.0,0.00033423,2]
[313104492,1706751035919,-500.0,0.00033423,2]
[313104493,1706751035929,-500.0,0.00033423,2]
[313104494,1706751035939,-500.0,0.00033423,2]
[313104495,1706751035949,-500.0,0.00033423,2]
[313104496,1706751035959,-500.0,0.00033423,2]
[313104497,1706751035968,-823.24,0.00033423,2]
[313104498,1706751035978,-153.73382314,0.00033423,2]
[313104499,1706751035988,-500.0,0.00033423,2]
[313104500,1706751035997,-1126.15,0.00033423,2]
[313104501,1706751036011,-517.9859418,0.00033423,2]
[313104502,1706751036021,-500.0,0.00033423,2]
[313104503,1706751036030,-1680.43,0.00033423,2]
[313104504,1706751036039,-1000.0,0.00033423,7]
[313104505,1706751036049,-591.5,0.00033423,2]
[313104506,1706751036058,-524.96003794,0.00033423,2]
[313104507,1706751036068,-500.0,0.00033423,2]
[313104508,1706751036077,-607.03,0.00033423,2]
[313104509,1706751036087,-172.82608514,0.00033423,2]
[313104510,1706751036097,-528.01043074,0.00033423,2]
[313104511,1706751036108,-500.0,0.00033423,2]
[313104512,1706751036119,-802.86,0.00033423,2]
[313104513,1706751036128,-510.47628344,0.00033423,2]
[313104514,1706751036138,-992.22314259,0.00033423,2]
[313104515,1706751036156,-712.75685741,0.00033423,2]
[313104516,1706751036166,-500.0,0.00033423,2]
[313104517,1706751036175,-518.89176745,0.00033423,2]
[313104518,1706751036185,-500.0,0.00033423,2]
[313104519,1706751036195,-503.27122667,0.00033423,2]
[313104520,1706751036204,-1000.0,0.00033423,7]
[313104521,1706751036214,-500.0,0.00033424,2]
[313104522,1706751036224,-0.51805715,0.00033424,2]
[313104523,1706751036236,-1306.71194285,0.00033424,2]
[313104524,1706751036245,-500.0,0.00033424,2]
[313104525,1706751036259,-496.0,0.00033424,2]
[313104526,1706751036268,-1113.48,0.00033424,2]
[313104527,1706751036277,-500.0,0.00033424,2]
[313104528,1706751036288,-637.96618107,0.00033424,2]
[313104529,1706751036298,-500.0,0.00033424,2]
[313104530,1706751036309,-316.80651499,0.00033424,2]
[313104531,1706751036337,-183.19348501,0.00033424,2]
[313104532,1706751036348,-500.0,0.00033424,2]
[313104533,1706751036358,-500.0,0.00033424,2]
[313104534,1706751036368,-500.0,0.00033424,2]
[313104535,1706751036378,-500.0,0.00033424,2]
[313104536,1706751036388,-49.4362544,0.00033424,2]
[313104537,1706751036400,-450.5637456,0.00033424,2]
[313104538,1706751036410,-229.14428557,0.00033424,2]
[313104539,1706751036422,-270.85571443,0.00033424,2]
[313104540,1706751036432,-500.0,0.00033424,2]
[313104541,1706751036442,-485.33179613,0.00033424,2]
[313104542,1706751036452,-13.98636044,0.00033424,2]
[313104543,1706751036478,-423.1094436,0.00033424,2]
[313104544,1706751036490,-62.90419596,0.00033424,2]
[313104545,1706751036503,-193.44942838,0.00033424,2]
[313104546,1706751036926,-210.0,0.00032931,2]
[313104547,1706751036935,-692.31,0.00033423,2]
[313104548,1706751036945,-306.55057162,0.00033424,2]
[313104549,1706751036955,-500.0,0.00033424,2]
[313104550,1706751036965,-500.0,0.00033424,2]
[313104551,1706751036975,-500.0,0.00033424,2]
[313104552,1706751036984,-1208.58,0.00033424,2]
[313104553,1706751036993,-500.0,0.00033424,2]
[313104554,1706751037009,-500.0,0.00033424,2]
[313104555,1706751037018,-500.0,0.00033424,2]
[313104556,1706751037028,-500.0,0.00033424,2]
[313104557,1706751037037,-500.0,0.00033424,2]
[313104558,1706751037046,-583.31,0.00033424,2]
[313104559,1706751037055,-500.0,0.00033424,2]
[313104560,1706751037065,-547.57324961,0.00033424,2]
[313104561,1706751037076,-500.0,0.00033424,2]
[313104562,1706751037086,-1528.21,0.00033424,2]
[313104563,1706751037096,-165.27,0.00033424,2]
[313104564,1706751037106,-573.78,0.00033424,2]
[313104565,1706751037115,-160.6,0.00033498,2]
[313104566,1706751037125,-1460.95450688,0.0003355,4]
[313104567,1706751037135,-163.73,0.00033629,2]
[313104568,1706751037144,-4.17167189,0.00033705,2]
[313104569,1706751037177,-1496.45993775,0.00033705,2]
[313104570,1706751037187,-605.91536225,0.00033793,6]
[313104571,1706751037198,-299.84,0.00033793,6]
[313104572,1706751037210,-841.1,0.00033793,6]